bitfinex/quotes_BTCUSD_20230404
["timestamp","ask_amount","ask_price","bid_price","bid_amount"]
[1680566400820,0.45603764,27795.0,27794.0,0.06384]
[1680566403890,0.45603764,27795.0,27794.0,0.11725419]
[1680566405357,0.04022128,27795.0,27794.0,1.08881266]
[1680566405607,0.04001128,27795.0,27794.0,1.43194768]
[1680566406483,0.02277001,27796.0,27795.0,0.38584]
[1680566406713,0.02277001,27796.0,27795.0,1.45213309]
[1680566407160,0.02277001,27796.0,27795.0,2.95658824]
[1680566407385,0.02277001,27796.0,27795.0,0.85715556]
[1680566407606,0.33679464,27796.0,27795.0,1.04297905]
[1680566407851,0.33679464,27796.0,27795.0,0.67477905]
[1680566408077,0.33679464,27796.0,27795.0,0.91822589]
[1680566408300,0.02277001,27796.0,27795.0,1.06407312]
[1680566408529,0.02277001,27796.0,27795.0,1.02011812]
[1680566408753,0.02024134,27796.0,27795.0,1.01993812]
[1680566409164,0.02024134,27796.0,27795.0,0.99293312]
[1680566409414,0.02024134,27796.0,27795.0,1.19060657]
[1680566409643,0.02024134,27796.0,27795.0,1.16528757]
[1680566410086,0.02024134,27796.0,27795.0,1.01978612]
[1680566410748,0.02024134,27796.0,27795.0,1.36258655]
[1680566411916,0.02024134,27796.0,27795.0,1.15566899]
[1680566412136,0.02024134,27796.0,27795.0,1.36265526]
[1680566413889,0.02024134,27796.0,27795.0,1.14716899]
[1680566414584,0.02024134,27796.0,27795.0,1.36263796]
[1680566414802,0.02024134,27796.0,27795.0,1.53236899]
[1680566415238,0.02024134,27796.0,27795.0,1.14716899]
[1680566416143,0.02024134,27796.0,27795.0,1.15566899]
[1680566416578,0.02024134,27796.0,27795.0,1.79084652]
[1680566416804,0.02024134,27796.0,27795.0,1.94084652]
[1680566417253,0.02024134,27796.0,27795.0,2.01032967]
[1680566417694,0.02024134,27796.0,27795.0,2.01028381]
[1680566417907,0.02024134,27796.0,27795.0,1.98227048]
[1680566418116,0.02024134,27796.0,27795.0,2.18283328]
[1680566418381,0.02024134,27796.0,27795.0,1.77813328]
[1680566418594,0.02024134,27796.0,27795.0,1.80613328]
[1680566419445,0.02024134,27796.0,27795.0,2.18283328]
[1680566420528,0.02024134,27796.0,27795.0,1.09771214]
[1680566420746,0.02024134,27796.0,27795.0,1.08921214]
[1680566421392,0.34696671,27796.0,27795.0,0.62296356]
[1680566421615,0.02045134,27796.0,27795.0,0.78635729]
[1680566421855,0.02045134,27796.0,27795.0,1.02871271]
[1680566421856,0.02024134,27796.0,27795.0,1.02871271]
[1680566422092,0.39419515,27796.0,27795.0,0.2364]
[1680566422301,0.57050215,27796.0,27795.0,0.028]
[1680566422517,0.42500834,27796.0,27795.0,0.028]
[1680566422732,0.42860534,27796.0,27795.0,0.028]
[1680566422950,0.42500834,27796.0,27795.0,0.028]
[1680566423196,0.2,27793.0,27792.0,0.17262]
[1680566423427,0.233183,27793.0,27792.0,0.17262]
[1680566424499,0.233183,27793.0,27792.0,0.20062]
[1680566425576,0.033183,27793.0,27792.0,0.20062]
[1680566425862,0.233379,27793.0,27792.0,0.55533056]
[1680566426075,0.20021,27793.0,27792.0,0.55533056]
[1680566427369,0.00021,27793.0,27792.0,0.55533056]
[1680566427585,0.00021,27794.0,27792.0,0.84139763]
[1680566427801,0.00021,27794.0,27793.0,0.53065356]
[1680566428020,0.00021,27794.0,27793.0,0.75718356]
[1680566428252,0.00021,27794.0,27793.0,1.18801961]
[1680566428933,0.00021,27795.0,27793.0,1.16207661]
[1680566429156,0.00021,27795.0,27793.0,1.18607661]
[1680566429372,0.00021,27795.0,27794.0,0.198944]
[1680566429667,0.02024134,27796.0,27794.0,0.57164356]
[1680566429930,0.02024134,27796.0,27795.0,0.50471056]
[1680566430170,0.02024134,27796.0,27795.0,0.73109856]
[1680566430429,0.02024134,27796.0,27795.0,0.75689656]
[1680566430685,0.02024134,27796.0,27795.0,0.73109856]
[1680566431213,0.02017867,27796.0,27795.0,0.73109856]
[1680566431454,0.02017867,27796.0,27795.0,0.58109856]
[1680566431958,0.02017867,27796.0,27795.0,0.60909856]
[1680566433793,0.02017867,27796.0,27795.0,1.01389321]
[1680566434631,0.02017867,27796.0,27795.0,0.61722656]
[1680566434893,0.33421042,27796.0,27795.0,0.59117056]
[1680566435111,0.33421042,27796.0,27795.0,0.23658]
[1680566435326,0.36590842,27796.0,27795.0,0.20074]
[1680566435545,0.36590842,27796.0,27795.0,0.20056]
[1680566435546,0.05187667,27796.0,27795.0,0.20056]
[1680566435771,0.25547367,27796.0,27795.0,0.02944]
[1680566435991,0.61506939,27796.0,27795.0,0.03088]
[1680566436224,0.61153239,27796.0,27795.0,0.03058]
[1680566436440,0.61168239,27796.0,27795.0,0.00252]
[1680566436655,0.61147239,27796.0,27795.0,0.03052]
[1680566436872,0.61527939,27796.0,27795.0,0.03052]
[1680566437087,0.61168239,27796.0,27795.0,0.03052]
[1680566437276,0.61527939,27796.0,27795.0,0.03058]
[1680566437589,0.61168239,27796.0,27795.0,0.00258]
[1680566437820,0.61168239,27796.0,27795.0,0.03052]
[1680566438009,0.61168239,27796.0,27795.0,0.03058]
[1680566438890,0.61103937,27796.0,27795.0,0.03052]
[1680566439707,0.61103937,27796.0,27795.0,0.03046]
[1680566440877,0.05144365,27796.0,27795.0,0.0304]
[1680566441154,0.05144365,27796.0,27795.0,0.02872]
[1680566441155,0.01974565,27796.0,27795.0,0.02872]
[1680566441371,0.05241465,27796.0,27795.0,0.38367056]
[1680566441575,0.01974565,27796.0,27795.0,0.38385056]
[1680566441788,0.36819442,27796.0,27795.0,0.38439056]
[1680566442008,0.40013042,27796.0,27795.0,0.38451056]
[1680566442224,0.36819442,27796.0,27795.0,0.38451056]
[1680566442638,0.36819442,27796.0,27795.0,0.38439056]
[1680566442862,0.36819442,27796.0,27795.0,0.38415056]
[1680566443073,0.36819442,27796.0,27795.0,0.38421056]
[1680566444193,0.36819442,27796.0,27795.0,0.38415056]
[1680566444409,0.36819442,27796.0,27795.0,0.38421056]
[1680566444630,0.36819442,27796.0,27795.0,0.38415056]
[1680566445060,0.36819442,27796.0,27795.0,0.02962]
[1680566445304,0.39971842,27796.0,27795.0,0.02962]
[1680566445519,0.39971842,27796.0,27795.0,0.02998]
[1680566445736,0.39971842,27796.0,27795.0,0.03004]
[1680566446165,0.39971842,27796.0,27795.0,0.02998]
[1680566447056,0.39971842,27796.0,27795.0,0.02992]
[1680566447703,0.39971842,27796.0,27795.0,0.02986]
[1680566447922,0.39971842,27796.0,27795.0,0.02968]
[1680566448187,0.39971842,27796.0,27795.0,0.02974]
[1680566448395,0.39971842,27796.0,27795.0,0.02992]
[1680566448565,0.39971842,27796.0,27795.0,0.02998]
[1680566448824,0.39971842,27796.0,27795.0,0.02992]
[1680566449717,0.39971842,27796.0,27795.0,0.0298]
[1680566450118,0.39971842,27796.0,27795.0,0.02974]
[1680566450329,0.39971842,27796.0,27795.0,0.0298]
[1680566451958,0.36819442,27796.0,27795.0,0.0298]
[1680566452158,0.36819442,27796.0,27795.0,0.02986]
[1680566452367,0.36819442,27796.0,27795.0,0.0298]
[1680566452578,0.36819442,27796.0,27795.0,0.02986]
[1680566452811,0.36819442,27796.0,27795.0,0.02992]
[1680566453029,0.36819442,27796.0,27795.0,0.0298]
[1680566453246,0.36819442,27796.0,27795.0,0.02974]
[1680566453861,0.36819442,27796.0,27795.0,0.0298]
[1680566454102,0.36819442,27796.0,27795.0,0.02986]
[1680566454342,0.39966742,27796.0,27795.0,0.02986]
[1680566454584,0.39966742,27796.0,27795.0,0.02992]
[1680566454818,0.39966742,27796.0,27795.0,0.02998]
[1680566455454,0.39966742,27796.0,27795.0,0.02992]
[1680566455697,0.39966742,27796.0,27795.0,0.02998]
[1680566455912,0.39966742,27796.0,27795.0,0.02992]
[1680566456161,0.39966742,27796.0,27795.0,0.02998]
[1680566456921,0.39966742,27796.0,27795.0,0.03004]
[1680566457141,0.39966742,27796.0,27795.0,0.02998]
[1680566457817,0.39966742,27796.0,27795.0,0.03004]
[1680566458039,0.39966742,27796.0,27795.0,0.02998]
[1680566458254,0.39966742,27796.0,27795.0,0.03004]
[1680566458466,0.39966742,27796.0,27795.0,0.02998]
[1680566458684,0.39966742,27796.0,27795.0,0.03004]
[1680566459104,0.39966742,27796.0,27795.0,0.02998]
[1680566459516,0.39966742,27796.0,27795.0,0.03004]
[1680566459729,0.39966742,27796.0,27795.0,0.02998]
[1680566459946,0.39966742,27796.0,27795.0,0.0301]
[1680566460177,0.39966742,27796.0,27795.0,0.03016]
[1680566460395,0.39966742,27796.0,27795.0,0.0301]
[1680566460861,0.39966742,27796.0,27795.0,0.03016]
[1680566461302,0.39966742,27796.0,27795.0,0.0301]
[1680566461519,0.39966742,27796.0,27795.0,0.03016]
[1680566461735,0.39966742,27796.0,27795.0,0.03004]
[1680566461965,0.05481565,27796.0,27795.0,0.03046]
[1680566462193,0.40952621,27796.0,27795.0,0.028]
[1680566462640,0.40952621,27796.0,27795.0,0.0283]
[1680566463111,0.40952621,27796.0,27795.0,0.028]
[1680566463340,0.40952621,27796.0,27795.0,0.0283]
[1680566463600,0.40952621,27796.0,27795.0,0.028]
[1680566463860,0.41152621,27796.0,27791.0,0.00018]
[1680566464288,0.183731,27795.0,27790.0,0.00078]
[1680566464549,0.032149,27794.0,27790.0,0.00048]
[1680566464774,0.003598,27793.0,27790.0,0.00072]
[1680566465014,0.003598,27793.0,27791.0,0.024]
[1680566465015,0.35364718,27792.0,27791.0,0.024]
[1680566465244,0.38612718,27792.0,27790.0,0.00018]
[1680566465507,0.030841,27791.0,27790.0,0.02818]
[1680566465748,0.030841,27791.0,27790.0,0.00294]
[1680566466188,0.030841,27791.0,27789.0,0.00312]
[1680566466408,0.030841,27791.0,27790.0,0.00294]
[1680566466628,0.030841,27791.0,27789.0,0.00306]
[1680566466839,0.030841,27791.0,27790.0,0.00282]
[1680566467098,0.030841,27791.0,27790.0,0.00288]
[1680566467330,0.030841,27791.0,27790.0,0.00276]
[1680566467560,0.030841,27791.0,27790.0,0.00288]
[1680566467561,0.33915927,27791.0,27790.0,0.00288]
[1680566467784,0.33915927,27791.0,27790.0,0.00282]
[1680566468014,0.33915927,27791.0,27790.0,0.03082]
[1680566468231,0.33915927,27791.0,27790.0,0.028]
[1680566468473,0.33915927,27791.0,27790.0,0.0307]
[1680566468690,0.33887625,27791.0,27790.0,0.03082]
[1680566468908,0.33872625,27791.0,27790.0,0.03082]
[1680566469376,0.33872625,27791.0,27790.0,0.0307]
[1680566469594,0.34232425,27791.0,27790.0,0.03118]
[1680566469814,0.34232425,27791.0,27790.0,0.03196]
[1680566470027,0.34232425,27791.0,27790.0,0.028]
[1680566470464,0.34232425,27791.0,27790.0,0.03268]
[1680566470696,0.34232425,27791.0,27790.0,0.028]
[1680566471406,0.34232425,27791.0,27785.0,0.00018]
[1680566471407,0.5767,27788.0,27785.0,0.00018]
[1680566471667,0.5767,27788.0,27782.0,0.00018]
[1680566471668,0.2,27785.0,27782.0,0.00018]
[1680566471924,0.035199,27784.0,27783.0,0.62669456]
[1680566472182,0.55371989,27793.0,27788.0,0.35156473]
[1680566472183,0.00021,27790.0,27788.0,0.35156473]
[1680566472419,0.38249006,27793.0,27788.0,0.35156473]
[1680566472420,0.00021,27791.0,27789.0,0.0864]
[1680566472637,0.00021,27791.0,27789.0,0.17262]
[1680566472638,0.003808,27791.0,27789.0,0.17262]
[1680566472865,0.33518818,27792.0,27790.0,0.17262]
[1680566473077,0.33518818,27792.0,27790.0,0.48046267]
[1680566473078,0.033892,27791.0,27790.0,0.48046267]
[1680566473290,0.003,27791.0,27790.0,0.30784267]
[1680566473511,0.037126,27791.0,27790.0,0.003]
[1680566473742,0.031002,27791.0,27790.0,0.17262]
[1680566473974,0.032002,27791.0,27790.0,0.17562]
[1680566474193,0.032002,27791.0,27790.0,0.003]
[1680566474194,0.001,27791.0,27790.0,0.003]
[1680566474430,0.001,27791.0,27790.0,0.17562]
[1680566474867,0.03273,27791.0,27790.0,0.17562]
[1680566475953,0.03281,27791.0,27790.0,0.17562]
[1680566476167,0.001,27791.0,27790.0,0.17562]
[1680566476389,0.03347,27791.0,27790.0,0.17562]
[1680566476827,0.001,27791.0,27790.0,0.17562]
[1680566477051,0.37144546,27791.0,27790.0,0.17562]
[1680566477269,0.40295346,27791.0,27790.0,0.17562]
[1680566477491,0.37144546,27791.0,27790.0,0.17562]
[1680566477711,0.40426446,27791.0,27790.0,0.17562]
[1680566477931,0.37144546,27791.0,27790.0,0.17562]
[1680566478848,0.40249446,27791.0,27790.0,0.17562]
[1680566479076,0.37144546,27791.0,27790.0,0.17562]
[1680566479755,0.40152946,27791.0,27790.0,0.17562]
[1680566480054,0.37144546,27791.0,27790.0,0.17562]
[1680566480471,0.40415846,27791.0,27790.0,0.17562]
[1680566480916,0.40775646,27791.0,27790.0,0.17562]
[1680566482100,0.07882725,27791.0,27790.0,0.17562]
[1680566482318,0.39202156,27791.0,27790.0,0.003]
[1680566482761,0.39202156,27791.0,27786.0,0.09084]
[1680566482762,0.39102156,27791.0,27786.0,0.09084]
[1680566482992,0.65614743,27790.0,27785.0,0.00126]
[1680566483218,0.010795,27788.0,27783.0,0.00138]
[1680566483438,0.043887,27786.0,27783.0,0.00144]
[1680566483686,0.033165,27785.0,27783.0,0.0018]
[1680566483885,0.036764,27785.0,27784.0,0.00222]
[1680566484122,0.4605524,27785.0,27784.0,0.00246]
[1680566484335,0.033062,27784.0,27783.0,0.00276]
[1680566484579,0.39856956,27784.0,27782.0,6e-05]
[1680566484801,0.38811356,27783.0,27782.0,0.00348]
[1680566485035,0.4385114,27783.0,27782.0,0.00348]
[1680566485253,0.032374,27782.0,27781.0,0.0036]
[1680566485477,0.032374,27782.0,27781.0,0.00018]
[1680566485706,0.00021,27785.0,27781.0,0.00018]
[1680566485707,0.00021,27785.0,27784.0,0.41420107]
[1680566485943,0.00021,27788.0,27784.0,0.0262]
[1680566486182,0.3534826,27790.0,27785.0,0.1125]
[1680566486183,0.3536926,27790.0,27785.0,0.1125]
[1680566486409,0.3534826,27790.0,27785.0,0.1125]
[1680566487056,0.3534826,27790.0,27785.0,0.26268]
[1680566487725,0.3564826,27790.0,27785.0,0.24148]
[1680566487935,0.3564826,27790.0,27785.0,0.259475]
[1680566488394,0.3686696,27789.0,27785.0,0.24148]
[1680566488605,0.3686696,27789.0,27786.0,0.30742018]
[1680566488829,0.3686696,27789.0,27786.0,0.30760018]
[1680566489725,0.030465,27788.0,27786.0,0.00018]
[1680566489916,0.030465,27788.0,27787.0,0.085]
[1680566490147,0.07463626,27788.0,27787.0,0.085]
[1680566490373,0.034063,27788.0,27784.0,6e-05]
[1680566490593,0.034063,27788.0,27783.0,0.00084]
[1680566490594,0.03477,27786.0,27783.0,0.00084]
[1680566490806,0.033232,27785.0,27783.0,0.0018]
[1680566491019,0.033232,27785.0,27783.0,0.00174]
[1680566491471,0.037352,27786.0,27783.0,0.0015]
[1680566491692,0.034383,27785.0,27783.0,0.0065]
[1680566491904,0.031383,27785.0,27783.0,0.00156]
[1680566492125,0.031383,27785.0,27784.0,0.0015]
[1680566492351,0.29437392,27786.0,27784.0,0.00156]
[1680566492352,0.03538,27786.0,27784.0,0.00156]
[1680566492554,0.07512976,27786.0,27784.0,0.04578]
[1680566492780,0.0357,27785.0,27784.0,0.0444]
[1680566493000,0.038677,27785.0,27784.0,0.0444]
[1680566493217,0.003599,27785.0,27784.0,0.0459]
[1680566493440,0.033315,27785.0,27784.0,0.05084]
[1680566493655,0.033315,27785.0,27784.0,0.04494]
[1680566493876,0.32573504,27785.0,27784.0,0.05006]
[1680566494103,0.35866834,27785.0,27784.0,0.0494]
[1680566494317,0.35866834,27785.0,27784.0,0.05012]
[1680566494869,0.35866834,27785.0,27784.0,0.04994]
[1680566494976,0.35866834,27785.0,27784.0,0.04982]
[1680566495195,0.35866834,27785.0,27784.0,0.04988]
[1680566495438,0.35866834,27785.0,27784.0,0.05]
[1680566495667,0.35766834,27785.0,27784.0,0.04494]
[1680566495894,0.36126734,27785.0,27784.0,0.0026]
[1680566496108,0.36126734,27785.0,27784.0,0.002]
[1680566496546,0.42378786,27785.0,27784.0,0.002]
[1680566496769,0.73380378,27785.0,27784.0,0.002]
[1680566497194,0.73380378,27785.0,27782.0,0.00114]
[1680566497451,0.73380378,27785.0,27781.0,0.27652189]
[1680566497452,0.34654822,27785.0,27784.0,0.002]
[1680566497673,0.69889848,27785.0,27783.0,0.00108]
[1680566497927,0.031672,27784.0,27783.0,0.00132]
[1680566498146,0.035271,27784.0,27782.0,0.00126]
[1680566498611,0.035271,27784.0,27782.0,0.00132]
[1680566498866,0.031672,27784.0,27783.0,0.28680181]
[1680566499098,0.005,27784.0,27783.0,0.28780181]
[1680566499336,0.032474,27784.0,27783.0,0.33230181]
[1680566499558,0.39457656,27786.0,27783.0,0.04574]
[1680566499559,0.37242401,27785.0,27783.0,0.04574]
[1680566499775,0.032721,27784.0,27783.0,0.04586]
[1680566499987,0.33314965,27784.0,27783.0,0.04734]
[1680566500177,0.33314965,27784.0,27783.0,0.0465]
[1680566500408,0.33174865,27784.0,27783.0,0.0465]
[1680566500613,0.33174865,27784.0,27783.0,0.04788]
[1680566500836,0.33174865,27784.0,27783.0,0.04782]
[1680566501046,0.33174865,27784.0,27783.0,0.0465]
[1680566501488,0.33174865,27784.0,27783.0,0.04682]
[1680566501702,0.33674865,27784.0,27783.0,0.0465]
[1680566502138,0.37116431,27784.0,27783.0,0.04782]
[1680566502356,0.37116431,27784.0,27783.0,0.0465]
[1680566502827,0.78059537,27784.0,27783.0,0.0465]
[1680566503489,0.78059537,27784.0,27783.0,0.04776]
[1680566503718,0.78059537,27784.0,27783.0,0.0465]
[1680566505070,0.72587487,27784.0,27783.0,0.0465]
[1680566506695,0.33314965,27784.0,27783.0,0.001]
[1680566506883,0.33314965,27784.0,27783.0,0.044]
[1680566507389,0.037721,27784.0,27783.0,0.044]
[1680566507617,0.005,27784.0,27783.0,0.45499252]
[1680566508517,0.005,27784.0,27783.0,0.45517252]
[1680566509196,0.005,27784.0,27783.0,0.04418]
[1680566509430,0.037813,27784.0,27783.0,0.044]
[1680566509653,0.43734548,27784.0,27783.0,0.044]
[1680566509879,0.43734548,27784.0,27783.0,0.04406]
[1680566510376,0.44094448,27784.0,27783.0,0.04406]
[1680566511050,0.43734548,27784.0,27783.0,0.04406]
[1680566511290,0.48178956,27784.0,27783.0,0.044]
[1680566511520,0.86801986,27784.0,27783.0,0.001]
[1680566511745,1.249342,27784.0,27783.0,0.001]
[1680566511972,1.05259446,27784.0,27783.0,0.001]
[1680566512453,1.04788416,27784.0,27778.0,0.02172]
[1680566512688,0.0862,27781.0,27778.0,0.02172]
[1680566512917,0.39084656,27780.0,27778.0,0.02178]
[1680566513150,0.030465,27779.0,27778.0,0.02178]
[1680566513375,0.034064,27779.0,27778.0,0.0216]
[1680566513612,0.034064,27779.0,27778.0,0.02154]
[1680566514126,0.045064,27779.0,27778.0,0.02154]
[1680566514356,0.04478099,27779.0,27778.0,0.02154]
[1680566514597,0.39934155,27779.0,27778.0,0.02148]
[1680566514849,0.39934155,27779.0,27778.0,0.02172]
[1680566515081,0.39934155,27779.0,27778.0,0.02178]
[1680566515310,0.04103199,27779.0,27778.0,0.20820205]
[1680566515505,0.04103199,27779.0,27778.0,0.20790205]
[1680566515757,0.04103199,27779.0,27778.0,0.20376205]
[1680566516208,0.04103199,27779.0,27778.0,0.20412205]
[1680566516411,0.03003199,27779.0,27778.0,0.20406205]
[1680566516667,0.011,27779.0,27778.0,0.20382205]
[1680566516891,0.042933,27779.0,27778.0,0.20370205]
[1680566517123,0.042933,27779.0,27778.0,0.20382205]
[1680566517360,0.042933,27779.0,27778.0,0.20376205]
[1680566517580,0.042933,27779.0,27778.0,0.20370205]
[1680566517812,0.011,27779.0,27778.0,0.2207]
[1680566518073,0.011,27779.0,27778.0,1.12078681]
[1680566518319,0.011,27779.0,27778.0,1.14201126]
[1680566518542,0.011,27779.0,27778.0,1.01312799]
[1680566518764,0.011,27779.0,27778.0,1.16312799]
[1680566519224,0.00021,27785.0,27779.0,0.15]
[1680566519441,0.00021,27787.0,27784.0,0.0864]
[1680566519670,0.37484904,27787.0,27785.0,0.1118]
[1680566519908,0.37484904,27787.0,27785.0,0.57018991]
[1680566520137,0.37484904,27787.0,27785.0,0.54398991]
[1680566520628,0.00021,27787.0,27786.0,0.59123975]
[1680566520853,1.37564978,27791.0,27786.0,0.60923375]
[1680566520854,0.00021,27788.0,27786.0,0.60923375]
[1680566521080,0.002,27787.0,27786.0,0.60923375]
[1680566521307,0.002,27787.0,27786.0,0.61779875]
[1680566521308,0.00221,27787.0,27786.0,0.61779875]
[1680566521775,0.002,27787.0,27786.0,0.61779875]
[1680566521993,0.00021,27789.0,27786.0,0.61779875]
[1680566522215,0.00021,27789.0,27787.0,0.026716]
[1680566522456,0.00021,27789.0,27787.0,0.176716]
[1680566522674,0.00021,27789.0,27787.0,0.15]
[1680566523109,0.00021,27789.0,27787.0,0.157]
[1680566523572,0.00021,27789.0,27788.0,0.24522681]
[1680566529272,1.39181653,27791.0,27788.0,0.24473585]
[1680566530293,0.36898962,27790.0,27787.0,0.00018]
[1680566530552,0.66088643,27790.0,27789.0,0.010048]
[1680566530825,0.55254462,27790.0,27789.0,0.010048]
[1680566531087,0.40254462,27790.0,27789.0,0.010048]
[1680566531889,0.40454462,27790.0,27789.0,0.010048]
[1680566538333,0.02476,27790.0,27789.0,0.010048]
[1680566539215,0.02476,27790.0,27789.0,4.8e-05]
[1680566544400,0.023918,27790.0,27789.0,4.8e-05]
[1680566545272,0.023519,27790.0,27789.0,4.8e-05]
[1680566545701,0.002,27790.0,27789.0,4.8e-05]
[1680566547505,0.002,27790.0,27789.0,0.26945995]
[1680566548173,0.002,27790.0,27789.0,0.41112156]
[1680566548400,0.002,27790.0,27789.0,0.87741451]
[1680566548838,1.06292489,27791.0,27789.0,0.87747451]
[1680566549062,1.06292489,27791.0,27790.0,0.47785356]
[1680566549287,1.06292489,27791.0,27790.0,0.47803356]
[1680566551067,1.06292489,27791.0,27790.0,0.50198256]
[1680566551275,1.06292489,27791.0,27790.0,0.46489056]
[1680566551487,1.06292489,27791.0,27790.0,0.49289056]
[1680566551702,1.06292489,27791.0,27790.0,0.11018]
[1680566551703,1.35193292,27791.0,27790.0,0.11018]
[1680566551945,1.35193292,27791.0,27790.0,0.0236]
[1680566552170,1.35193292,27791.0,27790.0,0.0506]
[1680566552903,1.35193292,27791.0,27790.0,0.0236]
[1680566553117,1.37352192,27791.0,27790.0,0.0436]
[1680566554437,1.37352192,27791.0,27790.0,0.06121474]
[1680566557580,1.37352192,27791.0,27790.0,0.03761474]
[1680566557581,1.58847104,27791.0,27790.0,0.03761474]
[1680566558239,1.58847104,27791.0,27790.0,0.01761474]
[1680566558451,1.58847104,27791.0,27790.0,0.014]
[1680566558700,1.58847104,27791.0,27782.0,0.0864]
[1680566558701,1.58847104,27791.0,27782.0,0.35550255]
[1680566558913,0.15,27789.0,27782.0,0.35550255]
[1680566559123,0.010796,27787.0,27782.0,0.35550255]
[1680566559339,0.16376881,27786.0,27783.0,0.01861366]
[1680566559555,0.022603,27785.0,27783.0,0.01879366]
[1680566560662,0.010796,27787.0,27783.0,0.01879366]
[1680566560897,0.020297,27786.0,27783.0,0.41241119]
[1680566561111,0.66539497,27788.0,27783.0,0.43241119]
[1680566561112,0.02175,27787.0,27783.0,0.43241119]
[1680566561798,0.30123876,27787.0,27783.0,0.41241119]
[1680566562028,0.30123876,27787.0,27783.0,0.03879366]
[1680566562029,0.49660737,27786.0,27783.0,0.03879366]
[1680566562247,0.203691,27785.0,27783.0,0.01879366]
[1680566562463,0.37636956,27784.0,27783.0,0.01861366]
[1680566562729,0.38716656,27784.0,27783.0,0.01861366]
[1680566563185,0.38716656,27784.0,27783.0,0.03961366]
[1680566563415,0.46238242,27784.0,27780.0,0.08623193]
[1680566563636,0.022213,27783.0,27780.0,0.08611193]
[1680566563859,0.022213,27783.0,27780.0,0.00012]
[1680566563860,0.033011,27783.0,27780.0,0.00012]
[1680566564083,0.022119,27782.0,27779.0,0.41779585]
[1680566564304,0.42767546,27782.0,27779.0,0.41779585]
[1680566564528,0.31649867,27781.0,27779.0,0.08623193]
[1680566564778,0.29383567,27781.0,27780.0,0.007]
[1680566564970,0.29383567,27781.0,27779.0,0.00018]
[1680566564971,0.34814467,27781.0,27779.0,0.00018]
[1680566565223,0.021702,27780.0,27779.0,0.01418]
[1680566565848,0.032501,27780.0,27779.0,0.01418]
[1680566566062,0.032501,27780.0,27779.0,0.00018]
[1680566566749,0.032501,27780.0,27779.0,0.00818]
[1680566566750,0.38821156,27780.0,27779.0,0.00818]
[1680566566967,0.78510333,27780.0,27779.0,0.008]
[1680566567393,0.78410333,27780.0,27778.0,0.02088]
[1680566567613,0.76240133,27780.0,27779.0,0.001]
[1680566567837,0.78470233,27780.0,27778.0,0.02088]
[1680566568054,0.022912,27779.0,27778.0,0.02088]
[1680566570004,0.027912,27779.0,27778.0,0.02088]
[1680566570222,0.40943747,27779.0,27778.0,0.02088]
[1680566570496,0.77583488,27779.0,27778.0,0.02882]
[1680566570711,0.77583488,27779.0,27778.0,0.02906]
[1680566570712,0.77604488,27779.0,27778.0,0.02906]
[1680566570922,0.77604488,27779.0,27778.0,0.02942]
[1680566571388,0.77504488,27779.0,27778.0,0.02142]
[1680566571622,0.77504488,27779.0,27778.0,0.01396872]
[1680566571623,1.19260622,27779.0,27778.0,0.01396872]
[1680566571889,1.49360043,27779.0,27778.0,0.01396872]
[1680566572346,1.49860043,27779.0,27778.0,0.01396872]
[1680566572571,1.49360043,27779.0,27778.0,0.01389076]
[1680566572789,1.49360043,27779.0,27778.0,0.01489076]
[1680566572790,1.50160043,27779.0,27778.0,0.01489076]
[1680566573011,1.41218396,27779.0,27778.0,0.01389076]
[1680566573226,1.27729294,27779.0,27778.0,0.01589076]
[1680566573435,1.26929294,27779.0,27778.0,0.03220555]
[1680566573656,1.27729294,27779.0,27778.0,0.03420555]
[1680566573876,0.98221941,27779.0,27778.0,0.03420555]
[1680566574086,0.97421941,27779.0,27778.0,0.03220555]
[1680566574316,1.16242075,27779.0,27778.0,0.03420555]
[1680566574534,1.54762075,27779.0,27778.0,0.01589076]
[1680566574747,1.60267293,27779.0,27778.0,0.01589076]
[1680566575193,1.59467293,27779.0,27778.0,0.01389076]
[1680566575406,1.60267293,27779.0,27778.0,0.01589076]
[1680566575625,1.59467293,27779.0,27778.0,0.01389076]
[1680566575848,1.60267293,27779.0,27778.0,0.01589076]
[1680566576061,1.97128179,27779.0,27778.0,0.01389076]
[1680566576273,1.99625942,27779.0,27778.0,0.01589076]
[1680566576501,1.99625942,27779.0,27778.0,0.01389076]
[1680566576502,1.98825942,27779.0,27778.0,0.01389076]
[1680566576718,1.60267293,27779.0,27778.0,0.01589076]
[1680566576957,1.60267293,27779.0,27778.0,0.01389076]
[1680566577175,1.70266793,27779.0,27778.0,0.01389076]
[1680566578029,1.71066793,27779.0,27778.0,0.01589076]
[1680566578315,1.71066793,27779.0,27778.0,0.01389076]
[1680566578530,1.71866793,27779.0,27778.0,0.01589076]
[1680566578744,1.70266793,27779.0,27778.0,0.01389076]
[1680566578962,1.71066793,27779.0,27778.0,0.01589076]
[1680566579196,1.70266793,27779.0,27778.0,0.01389076]
[1680566579406,1.71066793,27779.0,27778.0,0.01589076]
[1680566579835,1.70266793,27779.0,27778.0,0.01389076]
[1680566580699,2.01168983,27779.0,27778.0,0.01389076]
[1680566580923,1.71066793,27779.0,27778.0,0.01589076]
[1680566581166,1.70266793,27779.0,27778.0,0.01389076]
[1680566581378,1.71066793,27779.0,27778.0,0.01589076]
[1680566581591,1.70266793,27779.0,27778.0,0.01389076]
[1680566581803,1.71045793,27779.0,27778.0,0.01589076]
[1680566582046,1.78906793,27779.0,27778.0,0.01389076]
[1680566582263,1.78906793,27779.0,27778.0,0.01589076]
[1680566582489,1.79706793,27779.0,27778.0,0.01589076]
[1680566582704,1.78906793,27779.0,27778.0,0.01389076]
[1680566583802,1.99758072,27779.0,27778.0,0.01589076]
[1680566584062,1.68107293,27779.0,27778.0,0.01589076]
[1680566584363,2.08208272,27779.0,27778.0,0.01389076]
[1680566584704,2.02065091,27779.0,27778.0,0.01589076]
[1680566584941,1.54175091,27779.0,27778.0,0.01389076]
[1680566585209,1.54975091,27779.0,27778.0,0.01589076]
[1680566585482,1.54175091,27779.0,27778.0,0.01389076]
[1680566585733,1.54975091,27779.0,27778.0,0.01589076]
[1680566587015,1.70286793,27779.0,27778.0,0.01589076]
[1680566587282,1.71136793,27779.0,27778.0,0.01589076]
[1680566587733,1.70415631,27779.0,27778.0,0.01589076]
[1680566588188,2.04670013,27779.0,27778.0,0.01589076]